[Event "CCT Julius Baer-D1 2024"]
[Site "Online"]
[Date "2024.09.28"]
[Round "2"]
[White "Carlsen, Magnus"]
[Black "Aronian, Levon"]
[Result "1/2-1/2"]
[Annotator "TA"]
[ECO "A13"]
[WhiteElo "2832"]
[BlackElo "2729"]
[PlyCount "132"]
[EventDate "2024.09.25"]
[EventType "swiss"]
[EventCountry "NET"]
[SourceTitle "playchess.com"]
[Source "ChessBase"]
[SourceQuality "1"]
[TimeControl "600+2"]

{[%evp 47,132,114,130,121,123,102,99,115,108,58,72,20,66,79,141,111,123,57,59,55,52,57,61,59,108,67,92,92,128,0,0,0,0,0,310,51,161,161,161,161,161,-29982,292,161,161,161,161,0,0,0,0,0,0,0,0,0,0,0,0,0,0,0,0,0,0,0,0,0,0,0,0,0,0,0,0,0,0,0,0,0,0,0,0,0,0,0,0]} 1. c4 {[%emt 0:00:02]} Nf6 {[%emt 0:00:04]} 2. Nf3 {[%emt 0:00:08]} e6 {[%emt 0:00:05]} 3. g3 {[%emt 0:00:04]} d5 {[%emt 0:00:01]} 4. Bg2 {[%emt 0:00:02]} dxc4 {[%emt 0:00:10]} 5. Qa4+ {[%emt 0:00:02]} Nbd7 {[%emt 0:00:01]} 6. Qxc4 {[%emt 0:00:12]} a6 $1 {[%emt 0:00:01] The main line 6...a6 scores better than 6...c5.} 7. Qc2 {[%emt 0:00:04]} c5 {[%emt 0:00:03]} 8. Nc3 {[%emt 0:00:37]} Qc7 {[%emt 0:00:43] A13: English Opening: 1...e6.} 9. d4 {[%emt 0:00:25]} b5 {[%emt 0:00:04]} 10. Bf4 {[%emt 0:00:07]} Qb6 {[%emt 0:00:32]} 11. a4 {[%emt 0:01:44]} Bb7 {[%emt 0:00:32]} 12. dxc5 $146 {[%emt 0:00:34]} ({Predecessor:} 12. axb5 axb5 13. Rxa8+ Bxa8 14. O-O Bc6 15. Rd1 Be7 16. e4 Qb7 17. d5 exd5 18. exd5 Nxd5 {1-0 Abdisalimov,A (2503)-Zverev,L (2378) Moscow Aeroflot op-A 2024 (6)}) 12... Bxc5 {[%emt 0:00:17]} 13. O-O {[%emt 0:00:06]} b4 {[%emt 0:00:48]} 14. a5 {[%emt 0:00:18]} Qc6 {[%emt 0:00:03]} 15. Ne1 {[%emt 0:00:03]} Qc8 {[%emt 0:00:09]} 16. Na4 {[%emt 0:00:19]} Bxg2 {[%emt 0:00:06]} 17. Kxg2 {[%emt 0:00:01]} Qb7+ {[%emt 0:00:10]} 18. Nf3 {[%emt 0:00:04]} Rc8 {[%emt 0:00:36]} 19. Nxc5 {[%emt 0:00:47]} Nxc5 {[%emt 0:00:02]} 20. Bd6 {[%emt 0:00:39]} Nfe4 {[%emt 0:01:45]} 21. Rfd1 {[%emt 0:00:09]} Rc6 {[%emt 0:02:01]} 22. Bxc5 {[%emt 0:00:16]} Nxc5 {[%emt 0:00:00]} 23. Rd4 {[%emt 0:00:07]} O-O {[%emt 0:01:17]} 24. Rc4 {[%emt 0:00:23]} b3 {[%emt 0:00:12]} 25. Qd2 {[%emt 0:00:01]} h6 {[%emt 0:00:13]} 26. Qe3 {[%emt 0:00:51]} Nd7 {[%emt 0:00:14]} 27. Rxc6 {[%emt 0:00:02]} Qxc6 {[%emt 0:00:00]} 28. Qxb3 {[%emt 0:00:05]} ({White should try} 28. Rc1 $1 $16 {[%cal Rc1c6]} Qb5 29. Qd3) 28... Rb8 $14 {[%emt 0:00:01]} 29. Qa3 {[%emt 0:00:03]} Ne5 {[%emt 0:00:11]} (29... g5 $1 $11) 30. Rd1 $14 {[%emt 0:00:08]} Nxf3 {[%emt 0:00:15]} (30... Rb5 $142) 31. exf3 $16 {[%emt 0:00:06]} Qc2 {[%emt 0:00:04]} 32. Qd3 {[%emt 0:00:23]} (32. Rd6 $1 $16) 32... Rxb2 $14 {[%emt 0:00:03]} 33. Qxc2 {[%emt 0:00:02]} Rxc2 {[%emt 0:00:00]} 34. Rd6 {[%emt 0:00:08]} g5 $1 {[%emt 0:00:03]} 35. Rxa6 {[%emt 0:00:01]} Ra2 {[%emt 0:00:01]} (35... Kg7 $14 {deserves consideration.}) 36. Ra8+ {[%emt 0:00:11]} Kg7 {[%emt 0:00:01]} 37. a6 {[%emt 0:00:00]} h5 {[%emt 0:00:03]} 38. g4 {[%emt 0:00:11]} (38. Kf1 $16) 38... h4 $11 {[%emt 0:00:08]} 39. f4 {[%emt 0:00:18]} gxf4 {[%emt 0:00:01]} 40. Kf3 {[%emt 0:00:03]} (40. a7 $5 Ra3 $8 41. f3 $11) 40... e5 $2 {[%emt 0:00:07][%mdl 8192]} (40... f6 $1 $11) 41. a7 $2 {[%emt 0:00:12]} (41. g5 $1 $18) 41... f6 {[%emt 0:00:08] [#]} (41... Kf6 $1 $14) 42. Ke4 $1 $18 {[%emt 0:00:03]} Ra4+ {[%emt 0:00:02]} 43. Kf5 {[%emt 0:00:01]} f3 {[%emt 0:00:01]} 44. h3 $4 {[%emt 0:00:15][%mdl 8192] [#]} (44. g5 $18 fxg5 45. Kxg5) 44... Ra3 $4 {[%emt 0:00:05][%mdl 8192]} (44... Kf7 $1 {mates} 45. Rf8+ Kxf8 46. a8=Q+ Rxa8 47. g5 Ra2 (47... fxg5 {leads to mate.} 48. Kxg5 Re8 49. Kxh4 e4 50. Kg3 Kf7 51. h4 Kf6 52. h5 Kg5 53. h6 Rg8 54. Kh3 Kxh6 55. Kh4 e3 56. Kh3 exf2 57. Kh2 f1=R 58. Kh3 Rh1#) 48. Ke4 Rxf2 (48... fxg5 {is a self mate.} 49. Ke3 g4 50. hxg4 h3 51. Kxf3 Ra3+ 52. Ke4 h2 53. Kxe5 h1=Q 54. Kd6 Rd3+ 55. Kc5 Qd5+ 56. Kb6 Rb3+ 57. Kc7 Rb7+ 58. Kc8 Qd7#) 49. Ke3 fxg5 50. Kxf2 e4 51. Ke3 g4 52. hxg4 h3 53. g5 h2 54. g6 h1=Q (54... h1=R 55. Kf2 Rh2+ 56. Ke3 Kg7 57. Kf4 f2 58. Kg3 f1=Q 59. Kxh2 Qf3 60. Kg1 e3 61. Kh2 e2 62. Kg1 e1=Q+ 63. Kh2 Qfh1#) 55. Kd2 f2 56. Ke3 Qf3+ (56... f1=B 57. Kd4 Qf3 58. Kc5 Qc3+ 59. Kd5 Kg7 60. Kd6 Kxg6 61. Ke6 Bb5 62. Kd5 Kf5 63. Kd6 Qe5#) (56... f1=Q 57. g7+ Kxg7 58. Kd4 Qd3+ 59. Kc5 Qh5+ 60. Kc6 Qhb5+ 61. Kc7 Qdd7#) 57. Kd4 f1=Q (57... f1=B 58. Ke5 Qc3+ 59. Kf5 Kg7 60. Ke6 Qc5 61. Kd7 Bh3+ 62. Kd8 Qd6+ 63. Ke8 Qf8#) 58. g7+ Kxg7 59. Kc5 Qc3+ 60. Kd6 Qff6+ 61. Kd7 Qcc6#) 45. g5 {[%emt 0:00:14]} (45. Ke4 $142 Ra2 46. Kxf3) 45... fxg5 $18 {[%emt 0:00:02]} 46. Kxg5 {[%emt 0:00:03]} e4 {[%emt 0:00:02]} 47. Re8 $2 {[%emt 0:00:17]} (47. Kxh4 e3 48. Kg3 e2) ({White should play} 47. Kf4 $18 e3 48. Kxf3 exf2+ 49. Kxf2) 47... Rxa7 $11 {[%emt 0:00:01]} 48. Kxh4 {[%emt 0:00:01]} Ra4 {[%emt 0:00:05]} 49. Kg3 {[%emt 0:00:12]} Kf7 {[%emt 0:00:00]} 50. Rb8 {[%emt 0:00:02]} Kf6 {[%emt 0:00:05]} 51. h4 {[%emt 0:00:01]} Ra1 {[%emt 0:00:03]} 52. Rb6+ {[%emt 0:00:06]} Kf5 {[%emt 0:00:01]} 53. Rb5+ {[%emt 0:00:01]} Kf6 {[%emt 0:00:00]} 54. Kf4 {[%emt 0:00:02]} Ra2 {[%emt 0:00:01]} 55. Rb6+ {[%emt 0:00:00]} Kf7 {[%emt 0:00:02]} 56. Kg3 {[%emt 0:00:01]} Ra1 {[%emt 0:00:02]} 57. h5 {[%emt 0:00:02]} Rg1+ {[%emt 0:00:02]} 58. Kf4 {[%emt 0:00:00]} Rf1 {[%emt 0:00:03]} 59. Rb2 {[%emt 0:00:04]} Re1 {[%emt 0:00:01]} 60. Rb4 {[%emt 0:00:04]} Re2 {[%emt 0:00:03]} 61. Rxe4 {[%emt 0:00:02]} Rxf2 {[%emt 0:00:01]} 62. Ke3 {[%emt 0:00:01]} Re2+ {[%emt 0:00:01]} 63. Kxf3 {[%emt 0:00:00]} Rxe4 {[%emt 0:00:01]} 64. Kxe4 {[%emt 0:00:00]} Kg7 {[%emt 0:00:01]} 65. Kd5 {[%emt 0:00:02]} Kh6 {[%emt 0:00:00]} 66. Kc6 {[%emt 0:00:00]} Kxh5 {[%emt 0:00:01]} 1/2-1/2

[Event "CCT Julius Baer-D1 2024"]
[Site "Online"]
[Date "2024.09.28"]
[Round "2"]
[White "Firouzja, Alireza"]
[Black "Grischuk, Alexander"]
[Result "1-0"]
[Annotator "TA"]
[ECO "D35"]
[WhiteElo "2767"]
[BlackElo "2689"]
[PlyCount "89"]
[EventDate "2024.09.25"]
[EventType "swiss"]
[EventCountry "NET"]
[SourceTitle "playchess.com"]
[Source "ChessBase"]
[SourceQuality "1"]
[TimeControl "600+2"]

{[%evp 19,88,20,1,0,4,0,22,12,0,9,0,0,4,0,14,20,19,16,22,14,45,39,43,31,33,25,27,22,22,32,27,12,28,0,20,0,0,0,0,0,0,0,0,0,187,169,166,155,162,173,172,170,195,188,180,182,176,162,175,171,179,110,93,55,233,236,487,472,582,576,29999]} 1. d4 {[%emt 0:00:02]} d5 {[%emt 0:00:02]} 2. c4 {[%emt 0:00:02]} e6 {[%emt 0:00:01]} 3. Nc3 {[%emt 0:00:02]} Be7 {[%emt 0:00:01]} 4. cxd5 {[%emt 0:00:02]} exd5 {[%emt 0:00:00]} 5. Bf4 {[%emt 0:00:01]} Nf6 {[%emt 0:00:01]} 6. e3 {[%emt 0:00:26]} Bf5 {[%emt 0:00:03]} 7. Nge2 {[%emt 0:00:59]} O-O {[%emt 0:00:03]} 8. Ng3 {[%emt 0:00:19]} Be6 {[%emt 0:00:01]} 9. Bd3 {[%emt 0:00:23] D35: Queen's Gambit Declined: Exchange Variation.} c5 {[%emt 0:00:02]} 10. dxc5 {[%emt 0:00:13]} Bxc5 {[%emt 0:00:09]} 11. a3 $1 $146 {[%emt 0:00:34][%mdl 8] A top novelty.} ({Predecessor:} 11. O-O Nc6 12. Rc1 d4 13. Nb5 Bb6 14. e4 Ng4 15. Nf5 Nge5 16. Nbd6 Qf6 17. Bg3 Bxf5 18. Nxf5 {½-½ Dubov,D (2716)-Fridman,D (2586) World-chT Rapid 2023 (9)}) 11... Nc6 {[%emt 0:00:14]} 12. b4 {[%emt 0:00:09]} Bd6 {[%emt 0:01:44]} 13. Bxd6 {[%emt 0:00:21]} Qxd6 {[%emt 0:00:00]} 14. O-O {[%emt 0:00:02]} Rad8 {[%emt 0:00:51]} 15. Nb5 {[%emt 0:00:42]} Qe5 {[%emt 0:01:22]} 16. Rc1 {[%emt 0:00:17]} a6 {[%emt 0:01:08]} 17. Nd4 {[%emt 0:00:04]} Nxd4 {[%emt 0:00:01]} 18. exd4 {[%emt 0:00:01]} Qf4 {[%emt 0:00:00]} 19. Ne2 {[%emt 0:00:57]} Qg5 {[%emt 0:00:09]} 20. Rc7 {[%emt 0:00:07]} Rd7 {[%emt 0:00:06]} 21. Qc1 {[%emt 0:00:02]} h6 {[%emt 0:00:51]} 22. Qxg5 {[%emt 0:02:32]} hxg5 {[%emt 0:00:01]} 23. Rfc1 {[%emt 0:00:00]} Rxc7 {[%emt 0:00:24]} 24. Rxc7 {[%emt 0:00:01]} Rb8 {[%emt 0:00:01]} 25. f4 {[%emt 0:00:07]} g4 {[%emt 0:00:50]} 26. Kf2 {[%emt 0:00:33]} g6 {[%emt 0:00:31]} 27. a4 {[%emt 0:00:34]} Kf8 {[%emt 0:00:19]} 28. a5 {[%emt 0:00:04]} Ne8 {[%emt 0:00:07]} 29. Rc5 {[%emt 0:00:17]} Ke7 {[%emt 0:00:17]} 30. Nc3 {[%emt 0:00:05]} Nf6 {[%emt 0:00:22]} 31. Na4 {[%emt 0:00:08]} Bf5 $2 {[%emt 0:00:30]} (31... Bd7 $11 32. Nb6 Kd6) 32. Bxf5 $18 {[%emt 0:00:04]} gxf5 {[%emt 0:00:01]} 33. Rc7+ {[%emt 0:00:00]} Kd6 {[%emt 0:00:34]} 34. Rxf7 {[%emt 0:00:02]} Ne4+ {[%emt 0:00:00]} 35. Kg1 {[%emt 0:00:15]} Ke6 {[%emt 0:00:11]} 36. Rh7 {[%emt 0:00:01]} Kd6 {[%emt 0:00:06] [#]} 37. Rh6+ $1 {[%emt 0:00:16]} Kc7 {[%emt 0:00:01]} 38. Nb6 {[%emt 0:00:16]} Nc3 {[%emt 0:00:02]} 39. Re6 {[%emt 0:00:02]} Rd8 {[%emt 0:00:06] [#]} 40. Re5 {[%emt 0:00:08]} (40. Kf2 $1 $18) 40... Kc6 $16 {[%emt 0:00:03]} 41. Kf2 {[%emt 0:00:02]} Ne4+ $2 {[%emt 0:00:05]} ({Black should play} 41... Kb5 $14) 42. Ke3 $18 {[%emt 0:00:03]} Rh8 $2 {[%emt 0:00:03]} (42... Nd6 43. Kd3 (43. Rxd5 Nc4+ 44. Nxc4 Kxd5 $17) 43... Rh8 44. Rxd5 Kc7) 43. Rxf5 $18 {[%emt 0:00:05]} (43. Rxd5 Rh5 44. Kd3 Kc7 45. Rd7+ Kb8) ({Don't do} 43. Nxd5 Nd6 44. Nb6 (44. Ne7+ Kd7 $18) 44... Kc7 45. Re7+ Kb8) 43... Rxh2 {[%emt 0:00:02]} 44. Rxd5 {[%emt 0:00:01]} ({Not} 44. Nxd5 Nd6 45. Rg5 Rxg2 $16) 44... Nd6 {[%emt 0:00:02]} 45. Rc5# {[%emt 0:00:01]} 1-0

[Event "CCT Julius Baer-D1 2024"]
[Site "Online"]
[Date "2024.09.28"]
[Round "2"]
[White "Aronian, Levon"]
[Black "Carlsen, Magnus"]
[Result "1/2-1/2"]
[Annotator "TA"]
[ECO "C54"]
[WhiteElo "2729"]
[BlackElo "2832"]
[PlyCount "187"]
[EventDate "2024.09.25"]
[EventType "swiss"]
[EventCountry "NET"]
[SourceTitle "playchess.com"]
[Source "ChessBase"]
[SourceQuality "1"]
[TimeControl "600+2"]

{[%evp 92,187,0,0,0,0,0,0,0,0,0,0,0,0,0,0,0,0,0,0,0,0,0,0,0,-67,-67,-103,-67,-67,0,-113,0,-106,0,0,0,0,0,0,0,0,0,0,0,0,0,0,0,0,0,0,0,0,0,0,0,0,0,0,0,0,0,-83,0,0,0,0,0,0,0,0,0,-83,-83,-83,-83,-83,-83,-83,-83,-83,-83,-83,-83,-1243,-1241,-1024,-128,-162,-83,-83,0,-83,0,-289,0,-96]} 1. e4 {[%emt 0:00:03]} e5 {[%emt 0:00:04]} 2. Nf3 {[%emt 0:00:02]} Nc6 {[%emt 0:00:01]} 3. Bc4 {[%emt 0:00:01]} Bc5 {[%emt 0:00:03]} 4. c3 {[%emt 0:00:01]} Nf6 {[%emt 0:00:01]} 5. d3 {[%emt 0:00:01]} h6 {[%emt 0:00:12]} 6. h3 {[%emt 0:00:19]} d6 $1 {[%emt 0:00:06] The main line 6...d6 scores better than 6...0-0.} 7. Nbd2 {[%emt 0:00:03] C54: Giuoco Piano: 4 c3 Nf6, main lines with 5 d4 and 5 d3.} a6 {[%emt 0:00:04]} 8. a4 {[%emt 0:00:03]} Ba7 {[%emt 0:00:23]} 9. Bb3 {[%emt 0:00:09]} Ne7 {[%emt 0:00:26]} 10. Nf1 {[%emt 0:00:09]} Ng6 {[%emt 0:00:04]} 11. Ng3 {[%emt 0:00:01]} O-O {[%emt 0:00:02]} 12. O-O {[%emt 0:00:33]} d5 {[%emt 0:00:05]} 13. exd5 {[%emt 0:00:31]} Nxd5 {[%emt 0:00:01]} 14. Re1 {[%emt 0:00:01]} c6 {[%emt 0:00:02]} 15. d4 {[%emt 0:00:20]} exd4 {[%emt 0:00:02]} 16. Nxd4 {[%emt 0:00:01]} Re8 $146 {[%emt 0:00:25]} ({Predecessor:} 16... Qf6 17. Bxd5 cxd5 18. Be3 Ne5 19. b3 Bd7 20. Qh5 Rfe8 21. Nc2 Nd3 22. Bxa7 Rxa7 23. Rxe8+ Bxe8 {1-0 Nestorovic,N (2470)-Vokhidov,S (2512) Titled Tuesday intern op 7th April blitz 2020 (2)}) 17. Rxe8+ {[%emt 0:00:31]} Qxe8 {[%emt 0:00:00]} 18. Bxd5 {[%emt 0:00:00]} cxd5 {[%emt 0:00:01]} 19. Be3 {[%emt 0:00:01]} Bd7 {[%emt 0:01:02]} 20. Qb3 {[%emt 0:00:21]} Bc6 {[%emt 0:02:09]} 21. Ngf5 {[%emt 0:00:03]} Qd7 {[%emt 0:00:05]} 22. Qc2 {[%emt 0:00:22]} Re8 {[%emt 0:00:50]} 23. Nf3 {[%emt 0:00:09]} Bxe3 {[%emt 0:00:33]} 24. Nxe3 {[%emt 0:00:02]} Nf4 {[%emt 0:00:19]} 25. Nd4 {[%emt 0:00:10]} Re4 {[%emt 0:00:06]} 26. Qd1 {[%emt 0:00:52]} Qe7 {[%emt 0:00:44]} 27. Qf3 {[%emt 0:00:18]} Bd7 {[%emt 0:00:06]} 28. Kh1 {[%emt 0:00:35]} Qe5 {[%emt 0:00:07]} 29. b3 {[%emt 0:00:47]} Nd3 {[%emt 0:00:07]} 30. Ng4 {[%emt 0:00:29]} Re1+ {[%emt 0:00:15]} 31. Rxe1 {[%emt 0:00:03]} Qxe1+ {[%emt 0:00:00]} 32. Kh2 {[%emt 0:00:01]} Qxc3 {[%emt 0:00:10]} 33. Qe3 {[%emt 0:00:58]} Bxg4 {[%emt 0:00:02]} 34. hxg4 {[%emt 0:00:02]} Qc7+ {[%emt 0:00:00]} 35. g3 {[%emt 0:00:11]} Ne5 {[%emt 0:00:18]} 36. Kh3 {[%emt 0:00:02]} Nc6 {[%emt 0:00:52]} 37. Qe8+ {[%emt 0:00:03]} Kh7 {[%emt 0:00:00]} 38. Nf5 {[%emt 0:00:00]} d4 {[%emt 0:00:22]} 39. Nxd4 {[%emt 0:01:12]} Nxd4 {[%emt 0:00:02]} 40. Qe4+ {[%emt 0:00:00]} g6 {[%emt 0:00:17]} 41. Qxd4 {[%emt 0:00:01]} Qc6 {[%emt 0:00:00]} 42. Kh2 {[%emt 0:00:02]} Qf3 {[%emt 0:00:05]} 43. b4 {[%emt 0:00:01]} Qc6 {[%emt 0:00:16]} 44. a5 {[%emt 0:00:02]} Qf3 {[%emt 0:00:01]} 45. Kg1 {[%emt 0:00:01]} Kg8 {[%emt 0:00:05]} 46. Kf1 {[%emt 0:00:01]} Qc6 {[%emt 0:00:10]} 47. Ke2 {[%emt 0:00:24]} Qc2+ {[%emt 0:00:01]} 48. Ke3 {[%emt 0:00:01]} Qb3+ {[%emt 0:00:01]} 49. Kd2 {[%emt 0:00:29]} Kh7 {[%emt 0:00:11]} 50. Qe4 {[%emt 0:00:08]} Qb2+ {[%emt 0:00:04]} 51. Ke1 {[%emt 0:00:08]} Qc1+ {[%emt 0:00:01]} 52. Ke2 {[%emt 0:00:01]} Qc7 {[%emt 0:00:01]} 53. Kd3 {[%emt 0:00:07]} b6 {[%emt 0:00:06]} 54. Qc4 {[%emt 0:00:13]} Qd7+ {[%emt 0:00:03]} 55. Kc3 {[%emt 0:00:04]} (55. Qd4 $5 Qb5+ $8 56. Qc4 Qd7+ 57. Qd4 Qb5+ 58. Qc4 Qd7+ $11) 55... bxa5 {[%emt 0:00:01]} 56. bxa5 {[%emt 0:00:00]} Qb7 {[%emt 0:00:05]} 57. Kc2 {[%emt 0:00:15]} Kg8 {[%emt 0:00:03]} 58. Qc5 {[%emt 0:00:09]} (58. Kc3 $11) 58... Qe4+ $15 {[%emt 0:00:02]} 59. Kc3 {[%emt 0:00:01]} Qe1+ {[%emt 0:00:10]} 60. Kc4 {[%emt 0:00:03]} Qe4+ {[%emt 0:00:01]} (60... Qe2+ $1 $15 61. Kd5 Qxg4) 61. Kb3 {[%emt 0:00:01]} (61. Kc3 $1 $11) 61... Qd3+ {[%emt 0:00:02]} (61... Qxg4 $17 62. Kc3 Qf3+ 63. Kd2 Kg7) 62. Qc3 {[%emt 0:00:02]} (62. Kb4 $1 $11) 62... Qb5+ {[%emt 0:00:02]} ({Black should try} 62... Qd1+ $17 63. Ka3 Qxg4) 63. Ka3 $11 {[%emt 0:00:01]} Kh7 {[%emt 0:00:05]} 64. f4 {[%emt 0:00:01]} Kg8 {[%emt 0:00:01]} 65. Qd2 {[%emt 0:00:11]} Qc5+ {[%emt 0:00:01]} 66. Kb3 {[%emt 0:00:02]} Qb5+ {[%emt 0:00:01]} 67. Kc2 {[%emt 0:00:02]} Qc6+ {[%emt 0:00:05]} 68. Qc3 {[%emt 0:00:02]} Qb5 {[%emt 0:00:01]} 69. Qe5 {[%emt 0:00:08]} Qc4+ {[%emt 0:00:02]} 70. Kd2 {[%emt 0:00:03]} Qb4+ {[%emt 0:00:01]} 71. Ke2 {[%emt 0:00:02]} Qc4+ {[%emt 0:00:01]} 72. Kf3 {[%emt 0:00:03]} Qf1+ {[%emt 0:00:02]} 73. Ke4 {[%emt 0:00:03]} Qc4+ {[%emt 0:00:02]} ({But not} 73... Qg2+ 74. Kd4 $17) 74. Ke3 {[%emt 0:00:01]} Qb3+ {[%emt 0:00:01]} 75. Kd4 {[%emt 0:00:01]} Qb4+ {[%emt 0:00:02]} 76. Kd3 {[%emt 0:00:01]} Qb3+ {[%emt 0:00:00]} 77. Qc3 {[%emt 0:00:01]} (77. Kd4 $1 $11) 77... Qd5+ {[%emt 0:00:01]} ({Better is} 77... Qd1+ $17 78. Kc4 Qxg4) 78. Ke3 $11 {[%emt 0:00:01]} Qe6+ {[%emt 0:00:04]} 79. Kf3 {[%emt 0:00:02]} Qd5+ {[%emt 0:00:01]} 80. Kf2 {[%emt 0:00:01]} Qa2+ {[%emt 0:00:01]} 81. Ke3 {[%emt 0:00:02]} Qe6+ {[%emt 0:00:01]} 82. Qe5 {[%emt 0:00:02]} (82. Kf3 $11 {remains equal.}) 82... Qxg4 $17 {[%emt 0:00:04]} 83. Kf2 {[%emt 0:00:09]} Qe6 {[%emt 0:00:04]} 84. Qb8+ {[%emt 0:00:05]} Kg7 {[%emt 0:00:01]} 85. Qb2+ {[%emt 0:00:00]} Qf6 {[%emt 0:00:01]} 86. Qb6 {[%emt 0:00:02]} g5 {[%emt 0:00:03]} 87. Kf3 {[%emt 0:00:02]} h5 {[%emt 0:00:02]} 88. Ke4 $2 {[%emt 0:00:01][%mdl 8192] [#]} (88. Qc5 $17) 88... gxf4 $1 $19 {[%emt 0:00:05]} 89. gxf4 {[%emt 0:00:01]} Qe6+ $2 {[%emt 0:00:01]} (89... h4 $19 {Threatens to win with ...h3.} 90. Kf3 Qc3+ 91. Ke2 h3 92. Qg1+ Kf8) 90. Kf3 $17 {[%emt 0:00:02] [#]} Qg4+ {[%emt 0:00:05]} ({Black should play} 90... Qd5+ $1 $19 91. Ke3 Qc4) 91. Ke3 $17 {[%emt 0:00:02]} Qe6+ {[%emt 0:00:01]} 92. Kf3 $1 {[%emt 0:00:03]} Qg4+ $2 {[%emt 0:00:02]} (92... Qd5+ $17 93. Ke3 h4 94. Qb2+ Kg6 95. Qb6+ Qe6+ 96. Kf2 Kf5) 93. Ke3 $19 {[%emt 0:00:00]} Qe6+ $2 {[%emt 0:00:00]} (93... h4 $19 {has better winning chances.} 94. Qd4+ Kh7) 94. Kf3 $1 {[%emt 0:00:01]} 1/2-1/2

[Event "CCT Julius Baer-D1 2024"]
[Site "Online"]
[Date "2024.09.28"]
[Round "2"]
[White "Grischuk, Alexander"]
[Black "Firouzja, Alireza"]
[Result "1/2-1/2"]
[Annotator "TA"]
[ECO "B47"]
[WhiteElo "2689"]
[BlackElo "2767"]
[PlyCount "90"]
[EventDate "2024.09.25"]
[EventType "swiss"]
[EventCountry "NET"]
[SourceTitle "playchess.com"]
[Source "ChessBase"]
[SourceQuality "1"]
[TimeControl "600+2"]

{[%evp 13,90,8,15,29,27,16,10,25,27,21,37,8,29,31,26,13,14,10,17,13,29,18,33,40,55,56,62,56,98,61,53,53,72,73,79,52,62,49,61,51,54,44,68,33,24,7,16,0,7,0,10,0,0,0,0,0,0,0,0,0,0,0,0,0,0,0,0,0,0,0,0,0,0,0,0,0,0,0,0]} 1. e4 {[%emt 0:00:02]} c5 {[%emt 0:00:10]} 2. Nf3 {[%emt 0:00:02]} e6 {[%emt 0:00:01]} 3. d4 {[%emt 0:00:03]} cxd4 {[%emt 0:00:01]} 4. Nxd4 {[%emt 0:00:01]} Nf6 {[%emt 0:00:00]} 5. Nc3 {[%emt 0:00:47]} Nc6 {[%emt 0:00:02]} 6. Be2 {[%emt 0:01:17]} Qc7 {[%emt 0:00:35]} 7. Ndb5 {[%emt 0:00:09] B47: Sicilian: Taimanov: 5 Nc3 Qc7 6 f4, 6 g3 and 6 Be2.} Qb8 {[%emt 0:00:02]} 8. f4 {[%emt 0:00:01]} a6 {[%emt 0:00:01]} 9. e5 {[%emt 0:00:03]} axb5 {[%emt 0:00:01]} 10. exf6 {[%emt 0:00:01]} b4 $1 {[%emt 0:00:01]} 11. fxg7 $1 {[%emt 0:00:03]} Bxg7 {[%emt 0:00:01]} 12. Nb5 {[%emt 0:00:01]} d5 {[%emt 0:00:02]} 13. O-O {[%emt 0:00:02]} O-O {[%emt 0:00:08]} 14. Bd3 {[%emt 0:00:15]} f5 {[%emt 0:01:02]} 15. c3 {[%emt 0:00:04]} Bd7 {[%emt 0:00:17]} 16. Be3 {[%emt 0:00:12]} bxc3 {[%emt 0:00:16]} 17. bxc3 {[%emt 0:00:00]} Ne7 $146 {[%emt 0:00:05]} ({Predecessor:} 17... Rf7 18. Qe2 Qf8 19. Rab1 Bf6 20. Nd4 Nxd4 21. Bxd4 Bxd4+ 22. cxd4 Qg7 23. Rb4 Qf6 {½-½ Dominguez Perez,L (2752)-Aronian,L (2725) Titled Tuesday intern op 09th Jan Early blitz 2024 (8)}) 18. Bd4 {[%emt 0:00:49]} Ng6 {[%emt 0:00:15]} 19. Bxg7 {[%emt 0:00:47]} Kxg7 {[%emt 0:00:02]} 20. Qd2 {[%emt 0:00:00]} Rc8 {[%emt 0:02:43]} 21. a4 {[%emt 0:00:22]} Bxb5 {[%emt 0:01:17]} 22. Bxb5 {[%emt 0:00:03]} Qa7+ {[%emt 0:00:01]} 23. Kh1 {[%emt 0:00:08]} Qc5 {[%emt 0:00:01]} 24. Rac1 {[%emt 0:01:27]} Rd8 {[%emt 0:00:09]} 25. Qe2 {[%emt 0:01:50]} Rd6 {[%emt 0:00:04]} 26. g3 {[%emt 0:00:05]} Rf8 {[%emt 0:00:10]} 27. h4 {[%emt 0:00:06]} h6 {[%emt 0:00:27]} 28. h5 {[%emt 0:00:09]} Ne7 {[%emt 0:00:36]} 29. Qe5+ {[%emt 0:00:11]} Kf7 {[%emt 0:00:01]} 30. c4 {[%emt 0:00:10]} Rg8 {[%emt 0:00:09]} 31. Kg2 {[%emt 0:00:34]} Rc8 {[%emt 0:01:25]} (31... b6 {is interesting.} 32. cxd5 Qxd5+ 33. Qxd5 Nxd5 34. Kh3 Kf6) 32. cxd5 {[%emt 0:00:43]} (32. Rfd1 {keeps more tension.} d4 33. Rd3 b6 34. Ra1) 32... Qxd5+ {[%emt 0:00:03]} 33. Qxd5 {[%emt 0:00:01]} Rxd5 {[%emt 0:00:00]} 34. Rxc8 {[%emt 0:00:01]} Nxc8 {[%emt 0:00:00]} 35. Rc1 {[%emt 0:00:01]} Nd6 {[%emt 0:00:05]} 36. Rc7+ {[%emt 0:00:01]} Kf6 {[%emt 0:00:01]} 37. Rh7 {[%emt 0:00:20]} Nxb5 {[%emt 0:00:14]} 38. axb5 {[%emt 0:00:00]} Rxb5 {[%emt 0:00:01]} 39. Rxh6+ {[%emt 0:00:01]} Kf7 {[%emt 0:00:00]} 40. Rh7+ {[%emt 0:00:01]} Kf6 {[%emt 0:00:01]} 41. Rc7 {[%emt 0:00:08]} Rb2+ {[%emt 0:00:09]} 42. Kh3 {[%emt 0:00:06]} Rb1 {[%emt 0:00:01]} 43. Kg2 {[%emt 0:00:01]} Rb2+ {[%emt 0:00:01]} 44. Kh3 {[%emt 0:00:03]} Rb1 {[%emt 0:00:01]} 45. Kg2 {[%emt 0:00:02]} Rb2+ {[%emt 0:00:01]} 1/2-1/2